bitfinex-derivatives/quotes_ETHF0:USTF0_20250520
["timestamp","ask_amount","ask_price","bid_price","bid_amount"]
[1747705143634,0.00590296,2541.7,2541.6,0.78666]
[1747705143825,0.00590296,2541.7,2541.6,3.99446]
[1747705145330,0.00590296,2541.7,2541.6,5.26936]
[1747705146132,0.00590296,2541.7,2541.6,5.73297452]
[1747705146430,2.1424,2542.4,2542.1,0.78649]
[1747705146633,2.92881,2542.4,2542.2,1.3662]
[1747705146830,0.7609,2542.7,2542.2,1.3662]
[1747705147127,0.7609,2542.7,2542.2,4.574]
[1747705147128,0.78644,2542.4,2542.2,4.574]
[1747705147331,0.78639,2542.5,2542.2,4.574]
[1747705147527,0.00590296,2542.6,2542.3,2.15263]
[1747705148037,0.00590296,2542.6,2542.5,0.78638]
[1747705148425,0.00590296,2542.6,2542.4,0.78639]
[1747705148625,0.00590296,2542.6,2542.5,0.78638]
[1747705149147,0.00590296,2542.6,2542.4,0.7864]
[1747705149428,0.00590296,2542.6,2542.5,1.2751]
[1747705149832,0.79225296,2542.6,2542.5,1.2751]
[1747705150029,1.26240296,2542.6,2542.2,3.2078]
[1747705150227,0.7864,2542.5,2542.2,3.2078]
[1747705150430,1.2565,2542.4,2542.2,3.2078]
[1747705150633,1.2565,2542.4,2542.3,1.2751]
[1747705150843,0.00590296,2542.6,2542.3,1.2751]
[1747705151329,0.00590296,2542.6,2542.5,0.78638]
[1747705152326,0.00590296,2542.6,2542.5,3.99418]
[1747705152733,0.00590296,2542.6,2542.5,6.14098]
[1747705153228,0.00590296,2542.6,2542.5,11.14098]
[1747705153830,0.78609,2543.5,2542.5,11.14098]
[1747705154033,2.1007,2543.5,2543.3,0.78613]
[1747705154233,0.78601,2543.7,2543.4,4.5458]
[1747705154432,2.1007,2544.0,2543.4,4.5458]
[1747705154640,2.88663,2544.0,2543.7,3.2078]
[1747705154844,2.88663,2544.0,2543.8,1.3167]
[1747705155334,2.1007,2544.0,2543.8,1.3167]
[1747705156835,2.88663,2544.0,2543.8,1.3167]
[1747705157039,0.78595,2543.9,2543.8,1.3167]
[1747705157238,2.16175,2543.9,2543.8,1.3167]
[1747705157541,0.7608,2544.0,2543.8,1.3167]
[1747705157742,0.00590296,2544.1,2544.0,0.78592]
[1747705157943,0.00590296,2544.1,2544.0,3.2078]
[1747705158241,0.00590296,2544.1,2544.0,3.99372]
[1747705158438,0.7781,2544.6,2544.3,0.78581]
[1747705158735,0.7781,2544.6,2544.5,3.2078]
[1747705158942,0.78582,2544.4,2544.1,4.5617]
[1747705159135,0.7781,2544.6,2543.8,1.57896]
[1747705159136,1.2822,2544.5,2543.8,3.2078]
[1747705159340,0.78595,2543.9,2543.8,3.2078]
[1747705159940,0.78601,2543.7,2543.3,12.7593]
[1747705160251,0.78601,2543.7,2543.4,1.3539]
[1747705160637,2.06819,2543.8,2543.4,1.3539]
[1747705160941,0.78596,2543.9,2543.6,3.21370296]
[1747705161141,0.78598,2543.8,2543.7,1.2926]
[1747705161343,0.78596,2543.9,2543.7,1.2926]
[1747705161541,2.87553,2544.0,2543.7,1.2926]
[1747705161742,0.78595,2543.9,2543.7,1.2926]
[1747705161942,0.78598,2543.8,2543.7,1.2926]
[1747705163554,0.78596,2543.9,2543.7,1.2926]
[1747705164149,0.00590296,2544.1,2543.7,1.2926]
[1747705164446,0.00590296,2544.1,2543.9,3.99373]
[1747705164651,0.79179296,2544.1,2544.0,1.3439]
[1747705164950,0.78592,2544.0,2543.9,3.2078]
[1747705165152,2.07422,2544.0,2543.9,3.2078]
[1747705166157,0.00590296,2544.1,2543.9,3.2078]
[1747705166452,0.78592,2544.0,2543.9,3.2078]
[1747705166749,0.00590296,2544.1,2543.9,3.2078]
[1747705166956,0.00590296,2544.1,2543.9,3.99373]
[1747705167146,0.00590296,2544.1,2544.0,8.725]
[1747705168155,0.78592,2544.0,2543.9,11.9328]
[1747705168350,0.79181296,2544.1,2543.9,11.9328]
[1747705168550,0.78592,2544.0,2543.9,11.9328]
[1747705168747,2.06262,2544.0,2543.9,11.9328]
[1747705168948,2.06262,2544.0,2543.9,3.2078]
[1747705170153,3.53552,2544.0,2543.9,3.2078]
[1747705171449,2.7496,2544.0,2543.9,3.2078]
[1747705171650,1.52642,2544.0,2543.9,3.2078]
[1747705171851,1.52642,2544.0,2543.8,3.2078]
[1747705172049,0.78595,2543.9,2543.8,3.2078]
[1747705172556,2.07265,2543.9,2543.8,3.2078]
[1747705172957,0.78595,2543.9,2543.8,3.2078]
[1747705173262,2.12215,2543.9,2543.8,3.2078]
[1747705173857,1.3362,2543.9,2543.8,3.2078]
[1747705174058,2.12215,2543.9,2543.8,3.2078]
[1747705175167,0.00590296,2544.1,2543.8,3.2078]
[1747705175361,0.00590296,2544.1,2543.9,0.7764]
[1747705175663,0.78592,2544.0,2543.9,0.45961018]
[1747705175865,2.17882,2544.0,2543.9,0.45961018]
[1747705176166,7.97522,2544.0,2543.9,1.8e-07]
[1747705176367,8.76452,2544.0,2543.9,1.8e-07]
[1747705176956,0.78601,2543.7,2543.6,0.00590296]
[1747705177660,2.9786,2544.0,2543.6,0.00590296]
[1747705177860,2.9786,2544.0,2543.6,0.79191296]
[1747705178157,0.78595,2543.9,2543.6,0.00590296]
[1747705178347,3.76453,2544.0,2543.6,0.79192296]
[1747705178552,1.58232,2544.0,2543.8,3.2078]
[1747705178750,0.7964,2544.0,2543.8,3.2078]
[1747705179153,0.00590296,2544.1,2543.9,0.78593]
[1747705179358,0.78595,2543.9,2543.8,3.2078]
[1747705179657,0.78593,2544.0,2543.8,3.2078]
[1747705180061,0.78595,2543.9,2543.8,3.2078]
[1747705181056,0.79180296,2544.1,2543.8,3.2078]
[1747705182061,0.00590296,2544.1,2543.8,3.2078]
[1747705182362,0.78593,2544.0,2543.8,3.2078]
[1747705183464,0.78593,2544.0,2543.8,3.65914784]
[1747705183755,0.78595,2543.9,2543.8,0.45134784]
[1747705183954,2.83835,2543.9,2543.8,0.45134784]
[1747705184261,7.83835,2543.9,2543.8,7.84e-06]
[1747705184458,2.83835,2543.9,2543.8,7.84e-06]
[1747705186061,0.78595,2543.9,2543.8,7.84e-06]
[1747705187154,0.78598,2543.8,2543.6,5.26200296]
[1747705187355,0.78598,2543.8,2543.7,1.3561]
[1747705187755,0.78596,2543.9,2543.7,1.3561]
[1747705188056,0.78598,2543.8,2543.7,1.3561]
[1747705188456,0.00590296,2544.1,2543.7,1.3561]
[1747705188657,0.78594,2544.0,2543.7,1.81221574]
[1747705188863,0.00590296,2544.1,2543.8,1.3113]
[1747705189357,0.78595,2543.9,2543.8,1.3113]
[1747705189563,0.00590296,2544.1,2543.9,0.78595]
[1747705189762,0.79179296,2544.1,2544.0,1.3113]
[1747705190564,0.00590296,2544.1,2544.0,1.3113]
[1747705190759,0.79179296,2544.1,2544.0,1.76741574]
[1747705191467,0.79179296,2544.1,2544.0,5.74e-06]
[1747705192471,14.51579296,2544.1,2544.0,5.74e-06]
[1747705192665,0.78601,2543.7,2543.6,0.00590296]
[1747705192865,3.99381,2543.7,2543.6,0.00590296]
[1747705193068,0.78601,2543.7,2543.6,0.00590296]
[1747705193967,3.69501,2543.7,2543.6,0.00590296]
[1747705194461,12.41901,2543.7,2543.6,0.00590296]
[1747705194865,17.41901,2543.7,2543.6,2.96e-06]
[1747705195267,3.69501,2543.7,2543.6,2.96e-06]
[1747705196769,8.69501,2543.7,2543.6,2.96e-06]
[1747705197567,9.00778382,2543.7,2543.6,2.96e-06]
[1747705198268,8.69501,2543.7,2543.6,2.96e-06]
[1747705198874,17.30601,2543.7,2543.6,2.96e-06]
[1747705199173,17.61881519,2543.7,2543.6,2.96e-06]
[1747705200472,17.61881519,2543.7,2542.3,3.81637842]
[1747705200473,0.78641,2542.4,2542.3,3.81637842]
[1747705200866,0.7864,2542.5,2542.3,3.2078]
[1747705201868,0.78637,2542.6,2542.4,1.3854]
[1747705202082,0.00590296,2542.7,2542.6,0.78635]
[1747705202269,0.00590296,2542.7,2542.6,3.99415]
[1747705202573,0.00590296,2542.7,2542.6,8.99415]
[1747705202770,0.00590296,2542.7,2542.6,5.78635]
[1747705202973,0.00590296,2542.7,2542.6,8.99415]
[1747705203367,0.00590296,2542.7,2542.6,8.2078]
[1747705203672,0.79222296,2542.7,2542.6,8.2078]
[1747705203875,0.00590296,2542.7,2542.6,8.99415]
[1747705205066,0.78613,2543.3,2542.9,0.78623]
[1747705205275,1.2805,2543.7,2543.1,3.2078]
[1747705205463,0.78614,2543.3,2543.2,1.3726]
[1747705207377,0.78613,2543.4,2543.2,1.3726]
[1747705207570,0.00590296,2543.5,2543.2,1.3726]
[1747705207971,0.00590296,2543.5,2543.3,0.78613]
[1747705208170,0.00590296,2543.5,2543.4,1.3583]
[1747705210481,0.79197296,2543.5,2543.4,1.3583]
[1747705210672,0.00590296,2543.5,2543.4,1.3583]
[1747705211481,8.611,2544.5,2543.4,9.5661]
[1747705211674,6.32911316,2544.6,2544.2,3.2078]
[1747705211675,3.90706316,2544.6,2544.2,3.2078]
[1747705211979,6.32911316,2545.0,2544.3,2.1143]
[1747705212174,6.32911316,2545.0,2544.4,0.78576]
[1747705212377,0.78568,2544.8,2544.5,1.3665]
[1747705212570,0.78566,2544.9,2544.5,2.15225]
[1747705212777,7.71441612,2545.0,2544.5,2.15225]
[1747705212778,3.12721612,2545.0,2544.5,4.5743]
[1747705212976,3.12721612,2545.0,2544.9,0.78564]
[1747705213486,3.12721612,2545.0,2544.9,2.0191]
[1747705214177,3.12721612,2545.0,2544.9,2.80474]
[1747705215076,3.12721612,2545.0,2544.9,2.0191]
[1747705215381,3.12721612,2545.0,2544.4,3.21370296]
[1747705215573,0.78576,2544.5,2544.4,3.21370296]
[1747705215776,1.3931,2544.9,2544.4,3.21370296]
[1747705215976,0.78567,2544.8,2544.4,3.99948296]
[1747705216276,0.00590296,2545.0,2544.7,3.2078]
[1747705216673,0.00590296,2545.0,2544.8,1.3075]
[1747705216875,0.78565,2544.9,2544.8,1.3075]
[1747705217184,0.00590296,2545.0,2544.8,1.3075]
[1747705218582,0.79151296,2545.0,2544.8,1.3075]
[1747705218782,0.79153296,2545.0,2544.8,1.3075]
[1747705218985,0.00590296,2545.0,2544.8,1.3075]
[1747705219184,0.00590296,2545.0,2544.9,0.7185]
[1747705219384,0.79151296,2545.0,2544.9,0.7185]
[1747705219578,0.00590296,2545.0,2544.9,0.7185]
[1747705219985,0.79151296,2545.0,2544.9,0.7185]
[1747705220486,0.00590296,2545.0,2544.9,0.7185]
[1747705220887,0.00590296,2545.0,2544.9,2.80344]
[1747705221183,0.00590296,2545.0,2544.9,11.41144]
[1747705222187,0.00590296,2545.0,2544.9,16.41144]
[1747705222378,0.00590296,2545.0,2544.9,11.41144]
[1747705223882,0.00590296,2545.0,2544.9,7.80344]
[1747705224082,3.2078,2545.8,2545.0,1.96417]
[1747705224380,3.2078,2546.6,2545.7,3.2078]
[1747705224688,3.2078,2546.6,2546.1,3.2078]
[1747705224983,0.78526,2546.3,2546.2,1.3205]
[1747705225288,3.2078,2546.6,2546.1,0.0058909]
[1747705225579,0.78523,2546.4,2546.2,1.3205]
[1747705225785,0.78526,2546.3,2546.2,1.3205]
[1747705226084,1.3655,2546.5,2546.2,1.3205]
[1747705226276,3.2078,2546.6,2546.2,1.3205]
[1747705226481,1.3655,2546.8,2546.4,3.2078]
[1747705226785,0.78516,2546.7,2546.5,1.3205]
[1747705226982,3.2078,2547.0,2546.5,2.0408]
[1747705227180,1.3655,2546.9,2546.5,2.0408]
[1747705227383,0.78513,2546.8,2546.5,2.0408]
[1747705227585,1.3655,2546.9,2546.5,2.0408]
[1747705227889,0.78517,2546.7,2546.5,2.0408]
[1747705228181,1.3655,2546.9,2546.1,3.2136909]
[1747705228388,0.7853,2546.2,2546.1,3.2136909]
[1747705228588,5.2147,2546.6,2546.1,4.4826909]
[1747705228589,0.78522,2546.5,2546.1,4.4826909]
[1747705228789,0.78524,2546.4,2546.2,1.269]
[1747705228988,0.7337,2546.8,2546.2,1.269]
[1747705229190,0.7337,2546.8,2546.4,3.2078]
[1747705229387,0.78517,2546.6,2546.5,1.269]
[1747705229688,1.2928,2546.7,2546.5,1.269]
[1747705230189,0.7309,2547.1,2546.5,1.269]
[1747705230482,0.7309,2547.1,2546.6,0.744]
[1747705230688,0.78509,2546.9,2546.7,3.2078]
[1747705230883,1.2928,2547.0,2546.7,1.2734]
[1747705231092,3.2078,2547.3,2546.8,1.2734]
[1747705231592,1.2928,2547.2,2546.8,1.2734]
[1747705231793,0.78508,2546.9,2546.8,1.2734]
[1747705232286,0.78513,2546.8,2546.6,3.2078]
[1747705232491,0.7851,2546.9,2546.6,1.2734]
[1747705232691,0.7851,2546.9,2546.7,1.2734]
[1747705232890,1.2928,2547.2,2546.7,1.2734]
[1747705233081,0.78503,2547.1,2546.8,3.2078]
[1747705233284,1.2928,2547.2,2546.9,1.2734]
[1747705233485,0.78503,2547.1,2546.9,1.2734]
[1747705233685,0.78502,2547.1,2546.9,1.2734]
[1747705233892,1.2928,2547.2,2546.9,1.2734]
[1747705234092,0.7472,2547.5,2546.9,1.2734]
[1747705234393,0.78494,2547.4,2547.0,0.78503]
[1747705234597,0.78495,2547.4,2547.1,1.2711]
[1747705234894,0.78496,2547.3,2547.1,1.2711]
[1747705235094,0.7472,2547.5,2547.1,1.2711]
[1747705235294,0.78496,2547.3,2547.1,1.2711]
[1747705235795,1.357,2547.4,2546.9,3.9388]
[1747705235991,0.78505,2547.0,2546.9,3.2078]
[1747705236295,0.78504,2547.1,2546.9,3.2078]
[1747705236495,0.78504,2547.1,2547.0,1.2711]
[1747705238195,3.2078,2547.3,2546.6,8.634]
[1747705238393,0.78511,2546.8,2546.7,1.3749]
[1747705239397,2.11551,2546.8,2546.7,1.3749]
[1747705240399,0.78514,2546.7,2546.5,3.2078]
[1747705240697,1.3811,2546.6,2546.5,3.2078]
[1747705240894,1.3811,2546.6,2546.2,3.2078]
[1747705241095,1.3811,2546.6,2546.1,1.82018335]
[1747705241390,2.16629,2546.6,2546.2,0.78528]
[1747705241591,4.6998,2546.9,2546.2,1.3646]
[1747705241799,4.6998,2546.9,2546.3,8.633]
[1747705241997,0.7852,2546.5,2546.4,1.3646]
[1747705242202,1.3811,2546.8,2546.2,1.3646]
[1747705242400,6.66254,2546.9,2546.2,2.14989]
[1747705242401,4.6998,2546.9,2546.2,2.14989]
[1747705242590,0.78526,2546.3,2546.2,1.3646]
[1747705242789,1.3811,2546.7,2546.2,1.3646]
[1747705242990,1.3811,2546.7,2546.4,0.78521]
[1747705243194,1.3811,2546.7,2546.5,1.2919]
[1747705243795,0.78517,2546.6,2546.5,1.2919]
[1747705244198,2.16626,2546.7,2546.5,1.2919]
[1747705244600,2.16625,2546.7,2546.5,1.2919]
[1747705244899,0.78517,2546.6,2546.5,1.2919]
[1747705245492,3.2078,2547.3,2546.5,7.07709]
[1747705245692,2.0845,2547.2,2546.5,2.792]
[1747705245894,4.04703,2547.2,2546.5,2.792]
[1747705246196,2.0845,2547.2,2546.7,3.2078]
[1747705246405,2.0845,2547.2,2546.9,0.78506]
[1747705246406,0.7116,2547.2,2546.9,0.78506]
[1747705246593,3.2078,2547.3,2547.0,1.3145]
[1747705246798,1.3195,2547.4,2547.0,1.3145]
[1747705246799,1.3195,2547.4,2547.1,3.2078]
[1747705247001,1.3195,2547.4,2547.2,2.09947]
[1747705247201,1.55041,2547.5,2547.3,1.3145]
[1747705247600,0.78492,2547.4,2547.3,1.3145]
[1747705248498,0.785,2547.2,2546.8,12.6259]
[1747705248705,0.78497,2547.3,2546.9,2.09956]
[1747705249001,0.78497,2547.3,2547.1,3.2078]
[1747705249201,0.78497,2547.3,2547.2,1.2757]
[1747705249396,0.78499,2547.2,2547.1,3.2078]
[1747705249707,2.83039,2547.2,2547.1,3.2078]
[1747705250299,3.2078,2547.8,2547.1,3.2078]
[1747705250504,0.78496,2547.3,2547.2,2.0243]
[1747705250804,0.78499,2547.2,2547.1,3.2078]
[1747705250997,2.07409,2547.2,2546.9,1.2757]
[1747705251206,1.51274,2547.1,2546.9,1.2757]
[1747705251400,0.78505,2547.0,2546.9,1.2757]
[1747705251603,2.80183,2547.1,2546.9,1.2757]
[1747705252519,0.78514,2546.7,2546.6,0.44695975]
[1747705253006,0.78514,2546.7,2546.6,1.75765975]
[1747705253403,0.78514,2546.7,2546.6,0.44695975]
[1747705255308,10.0012,2546.9,2546.3,4.5185]
[1747705255508,2.0918,2546.6,2546.3,4.5185]
[1747705255707,0.7321,2546.6,2546.3,4.5185]
[1747705256609,0.78516,2546.7,2546.3,5.30375]
[1747705256804,0.78516,2546.7,2546.4,0.4542693]
[1747705257108,9.9917,2546.9,2546.5,1.3399]
[1747705257304,0.78512,2546.8,2546.5,1.3399]
[1747705257509,0.78512,2546.8,2546.6,3.2078]
[1747705257806,0.78511,2546.8,2546.7,1.3399]
[1747705258005,0.7852,2546.5,2546.4,0.4542693]
[1747705258206,0.7852,2546.5,2546.4,1.7578693]
[1747705259107,0.78519,2546.6,2546.4,1.7578693]
[1747705259908,0.7852,2546.5,2546.4,1.3036]
[1747705260105,0.78522,2546.5,2546.3,3.65475975]
[1747705260300,0.6694,2546.7,2546.3,4.95835975]
[1747705260504,0.78523,2546.4,2546.3,4.95835975]
[1747705260704,0.78523,2546.4,2546.3,3.65475975]
[1747705260905,8.99303,2546.4,2546.3,9.75e-06]
[1747705261111,0.78542,2545.8,2545.1,8.598]
[1747705261309,3.99322,2545.8,2545.5,1.3778]
[1747705261717,3.99322,2545.8,2545.1,8.598]
[1747705261909,8.2078,2545.8,2544.9,3.2078]
[1747705262108,0.7856,2545.2,2545.1,0.0058909]
[1747705262606,0.6986,2545.6,2545.1,0.0058909]
[1747705262813,0.78539,2545.9,2545.5,0.78549]
[1747705263013,2.0784,2546.0,2545.6,1.3778]
[1747705263213,4.5826,2545.8,2545.3,0.6771]
[1747705263403,4.5826,2545.8,2545.3,2.0549]
[1747705263611,0.78553,2545.5,2545.1,0.7915209]
[1747705263809,0.7036,2546.0,2545.2,3.2078]
[1747705264011,0.7036,2546.0,2545.6,0.78547]
[1747705264012,1.3748,2545.9,2545.6,0.78547]
[1747705264221,0.7854,2545.9,2545.7,1.2747]
[1747705264721,2.87357,2546.0,2545.7,1.2747]
[1747705264922,0.78539,2545.9,2545.7,1.2747]
[1747705265116,0.78542,2545.8,2545.7,1.2747]
[1747705265418,0.78557,2545.3,2545.2,3.2078]
[1747705265818,0.7856,2545.2,2545.1,0.0058909]
[1747705266123,2.1702,2545.2,2545.1,0.0058909]
[1747705266515,7.1702,2545.2,2545.1,0.0058909]
[1747705267624,2.1702,2545.2,2545.1,0.0058909]
[1747705268215,7.1702,2545.2,2545.1,9e-07]
[1747705269022,10.7712,2545.2,2545.1,9e-07]
[1747705270419,2.1702,2545.2,2545.1,9e-07]
[1747705270724,1.3846,2545.2,2545.1,0.7856309]
[1747705271017,8.602,2545.6,2545.1,3.2078009]
[1747705271223,0.78555,2545.4,2545.2,1.3824]
[1747705271416,0.78557,2545.3,2545.2,1.3824]
[1747705272524,0.78557,2545.3,2545.1,9e-07]
[1747705272525,0.7856,2545.2,2545.1,9e-07]
[1747705272727,2.0958,2545.2,2545.1,9e-07]
[1747705273522,1.3102,2545.2,2545.1,9e-07]
[1747705273729,1.49238,2545.3,2545.1,9e-07]
[1747705274026,1.49238,2545.3,2545.1,1.2751009]
[1747705274027,0.7856,2545.2,2545.1,1.2751009]
[1747705274725,2.175,2545.2,2545.1,1.2751009]
[1747705274928,1.3894,2545.2,2545.1,1.2751009]
[1747705275134,1.49239,2545.3,2545.1,1.2751009]
[1747705275732,0.7856,2545.2,2545.1,1.2751009]
[1747705276331,0.7856,2545.2,2545.1,9e-07]
[1747705276532,10.6956,2545.2,2545.1,9e-07]
[1747705277030,15.6956,2545.2,2545.1,9e-07]
[1747705277233,1.96433,2544.8,2544.0,3.2078]
[1747705277434,0.78594,2544.1,2544.0,4.5265]
[1747705277838,0.78593,2544.2,2544.0,4.5265]
[1747705278135,0.78594,2544.1,2544.0,4.5265]
[1747705278333,1.3128909,2544.3,2544.0,4.5265]
[1747705278637,1.3128909,2544.3,2544.0,1.3187]
[1747705278638,0.78594,2544.1,2544.0,1.3187]
[1747705279237,0.786,2543.9,2543.8,1.3245909]
[1747705279627,0.786,2543.9,2543.8,0.0058909]
[1747705279838,15.0619,2543.9,2543.8,9e-07]
[1747705280035,17.003,2543.9,2543.8,9e-07]
[1747705280229,0.78633,2542.9,2542.7,2.6927]
[1747705280435,0.78633,2542.9,2542.8,1.2956]
[1747705280736,3.99413,2542.9,2542.8,1.2956]
[1747705281031,0.78642,2542.6,2542.4,2.63449385]
[1747705281242,0.78644,2542.5,2542.4,2.63449385]
[1747705281435,2.06494,2542.5,2542.4,2.63449385]
[1747705281935,7.06494,2542.5,2542.4,2.63449385]
[1747705282332,0.7865,2542.3,2542.2,0.0058909]
[1747705282528,12.6013,2542.3,2542.2,0.0058909]
[1747705282728,17.6013,2542.3,2542.2,9e-07]
[1747705284940,8.9943,2542.3,2542.2,9e-07]
[1747705285139,17.6013,2542.3,2542.2,9e-07]
[1747705285438,17.6033,2542.3,2542.2,9e-07]
[1747705286634,0.78684,2541.2,2541.1,1.2933]
[1747705286934,11.8168,2541.2,2540.5,3.8751]
[1747705287246,1.3612,2541.1,2540.6,1.2933]
[1747705287538,0.78692,2541.0,2540.6,1.29920284]
[1747705287735,1.36710284,2541.1,2540.6,2.08622284]
[1747705287942,3.2078,2540.9,2540.6,1.29920284]
[1747705288141,1.36710284,2541.1,2540.7,0.78698]
[1747705288347,2.15399284,2541.1,2540.8,1.2933]
[1747705288535,8.783,2541.0,2540.8,2.08025]
[1747705289141,8.783,2541.0,2540.8,1.2933]
[1747705289543,0.00590284,2541.1,2541.0,0.7869]
[1747705289743,0.00590284,2541.1,2540.8,1.2933]
[1747705290037,0.00590284,2541.1,2540.9,0.78692]
[1747705290237,0.00590284,2541.1,2541.0,1.2642]
[1747705291043,0.79277284,2541.1,2541.0,1.2642]
[1747705291839,0.00590284,2541.1,2541.0,1.2642]
[1747705293250,0.00590284,2541.1,2541.0,7.0511]
[1747705293444,0.00590284,2541.1,2541.0,2.0511]
[1747705293746,0.79277284,2541.1,2541.0,1.2642]
[1747705293940,0.79277284,2541.1,2540.6,0.00590284]
[1747705293941,0.00590284,2541.1,2540.6,0.00590284]
[1747705294150,0.78699,2540.7,2540.6,1.29150284]
[1747705294345,8.784,2540.8,2540.6,1.29150284]
[1747705294543,0.00590284,2541.1,2540.7,0.78697]
[1747705294742,0.00590284,2541.1,2540.8,4.5211]
[1747705294948,0.00590284,2541.1,2540.8,1.3133]
[1747705294949,0.79279284,2541.1,2540.8,1.3133]
[1747705295250,0.00590284,2541.1,2540.8,1.3133]
[1747705295652,0.79278284,2541.1,2540.8,1.3133]
[1747705295949,0.78691,2541.0,2540.8,1.3133]
[1747705296149,9.57779284,2541.1,2540.8,1.3133]
[1747705296355,8.79090284,2541.1,2540.8,1.3133]
[1747705296544,0.78692,2541.0,2540.8,1.3133]
[1747705297049,0.78693,2540.9,2540.8,1.3133]
[1747705297741,10.18140284,2541.1,2540.8,1.3133]
[1747705297946,0.00590284,2541.1,2540.8,1.3133]
[1747705298752,0.00590284,2541.1,2540.8,2.10025]
[1747705299150,0.00590284,2541.1,2540.9,0.78693]
[1747705299352,0.00590284,2541.1,2541.0,1.3105]
[1747705300746,0.79277284,2541.1,2541.0,1.3105]
[1747705301853,0.00590284,2541.1,2540.6,3.21370284]
[1747705302057,0.78695,2540.9,2540.7,1.3847]
[1747705302458,0.78692,2541.0,2540.7,1.3847]
[1747705302656,8.79290284,2541.1,2540.7,2.17168]
[1747705302859,8.79290284,2541.1,2540.8,1.3847]
[1747705303152,0.78693,2540.9,2540.8,1.3847]
[1747705303551,0.00590284,2541.1,2540.8,1.3847]
[1747705303750,0.79279284,2541.1,2540.8,1.3847]
[1747705303947,0.00590284,2541.1,2540.8,1.3847]
[1747705304152,0.00590284,2541.1,2540.8,2.17166]
[1747705304361,0.78691,2541.0,2540.6,4.00071284]
[1747705304556,0.78694,2540.9,2540.7,1.3771]
[1747705304759,0.00590284,2541.1,2540.7,1.3771]
[1747705305058,0.78696,2540.8,2540.7,1.3771]
[1747705305356,9.57396,2540.8,2540.7,1.3771]
[1747705306762,9.57396,2540.8,2540.6,3.21370284]
[1747705306763,0.787,2540.7,2540.6,3.21370284]
[1747705306959,0.787,2540.7,2540.6,4.54760284]
[1747705307259,2.1081,2540.7,2540.6,3.21370284]
[1747705307461,5.3159,2540.7,2540.6,0.00590284]
[1747705307857,0.78727,2539.8,2539.7,0.44146013]
[1747705308062,8.788,2540.0,2539.5,4.5417]
[1747705308259,0.78729,2539.8,2539.5,4.5417]
[1747705308458,8.788,2539.9,2539.5,4.5417]
[1747705308859,8.788,2539.9,2539.6,0.78732]
[1747705309159,9.57622,2540.0,2539.7,2.0083]
[1747705309366,0.78725,2539.9,2539.8,1.3339]
[1747705310067,0.78734,2539.6,2539.4,0.59742003]
[1747705310363,0.78734,2539.6,2539.5,1.2652]
[1747705310559,0.78731,2539.7,2539.5,1.2652]
[1747705310861,0.00590284,2539.8,2539.5,1.2652]
[1747705310862,0.78734,2539.6,2539.5,1.2652]
[1747705311059,0.00590284,2539.8,2539.5,1.2652]
[1747705311261,0.78734,2539.6,2539.5,1.2652]
[1747705311458,12.78414,2539.6,2539.5,1.2652]
[1747705311667,9.57634,2539.6,2539.5,1.2652]
[1747705311860,0.78737,2539.5,2539.4,0.00590284]
[1747705312064,2.10137,2539.5,2539.4,0.00590284]
[1747705312369,0.78755,2538.9,2538.8,4.39974467]
[1747705312570,0.78774,2538.3,2537.9,1.2652]
[1747705312769,12.78554,2538.3,2537.9,1.2652]
[1747705313073,0.78783,2538.0,2537.9,1.2652]
[1747705313272,0.78786,2537.9,2537.7,0.00398337]
[1747705313561,10.95346,2537.9,2537.7,0.00398337]
[1747705314972,0.78789,2537.8,2537.7,0.00398337]
[1747705315466,6.3756,2537.8,2537.0,2.63449385]
[1747705315669,6.3756,2537.8,2537.1,1.3029]
[1747705315670,3.2078,2537.4,2537.1,1.3029]
[1747705316466,0.78807,2537.3,2537.1,1.3029]
[1747705316663,1.3587,2537.3,2537.1,1.3029]
[1747705316862,3.2078,2537.4,2537.1,1.3029]
[1747705317066,3.2078,2537.4,2537.1,2.09101]
[1747705317267,3.2078,2537.4,2537.1,1.3029]
[1747705317569,3.2078,2537.4,2537.2,1.2595]
[1747705317766,8.864,2537.5,2537.2,1.2595]
[1747705318070,0.78805,2537.3,2537.2,1.2595]
[1747705318368,4.5665,2537.4,2537.0,2.63449385]
[1747705318565,3.2078,2537.4,2537.1,1.2595]
[1747705319167,12.0748,2537.4,2537.1,1.2595]
[1747705319374,0.78808,2537.2,2537.1,1.2595]
[1747705320168,0.78811,2537.1,2537.0,2.63449385]
[1747705320372,3.2078,2537.1,2537.0,2.63449385]
[1747705321175,3.2078,2537.1,2537.0,8.42263385]
[1747705322072,10.2603,2537.6,2537.0,11.63043385]
[1747705322274,0.78801,2537.5,2537.1,1.2777]
[1747705322664,0.78799,2537.5,2537.1,1.2777]
[1747705322867,11.04827,2537.6,2537.1,2.06579]
[1747705323169,0.78799,2537.5,2537.1,2.06579]
[1747705323368,9.65697,2537.6,2537.2,1.2777]
[1747705323672,0.78794,2537.7,2537.2,2.06577]
[1747705323867,3.2078,2537.5,2537.2,1.2777]
[1747705324074,0.78804,2537.4,2537.3,1.2777]
[1747705324578,0.78804,2537.4,2537.1,0.6703]
[1747705324579,10.1876,2537.4,2536.5,3.99608]
[1747705324878,0.78819,2536.9,2536.7,1.2777]
[1747705325579,3.99601,2536.8,2536.7,1.2777]
[1747705325775,3.99601,2536.8,2535.9,0.44603637]
[1747705325776,12.0778,2536.8,2535.9,0.44603637]
[1747705325980,0.78836,2536.3,2536.2,1.385]
[1747705326176,3.2078,2536.5,2535.9,0.44603637]
[1747705326177,0.78845,2536.0,2535.9,0.44603637]
[1747705326482,0.78844,2536.1,2535.9,0.44603637]
[1747705326781,3.2078,2536.3,2535.9,0.44603637]
[1747705327286,3.2078,2536.3,2535.5,1.3178]
[1747705327485,0.78842,2536.1,2535.7,0.78854]